bitfinex/quotes_SOLUSD_20250228
["timestamp","ask_amount","ask_price","bid_price","bid_amount"]
[1740715414142,1.43355527,127.47,127.45,0.0001]
[1740715416449,9.27855527,127.47,127.45,0.0001]
[1740715416853,1.43355527,127.47,127.45,0.0001]
[1740715417041,9.27855527,127.47,127.45,0.0001]
[1740715417547,1.43355527,127.47,127.45,0.0001]
[1740715418248,1.43355527,127.47,127.46,0.14216157]
[1740715418454,1.46355527,127.47,127.46,136.64216157]
[1740715418654,7.8402,127.55,127.46,218.24216157]
[1740715418842,19.5966,127.58,127.48,0.14216157]
[1740715419039,19.5966,127.58,127.49,1.64605769]
[1740715419248,9.65974075,127.6,127.5,0.14216157]
[1740715419428,7.8369,127.6,127.5,0.14216157]
[1740715419633,7.8369,127.6,127.52,0.14216157]
[1740715419831,7.8369,127.6,127.52,218.24216157]
[1740715420034,7.8369,127.6,127.52,218.1]
[1740715420258,7.8369,127.6,127.53,0.14216157]
[1740715420461,7.8351,127.63,127.54,1.6457826]
[1740715420755,1.82284075,127.64,127.54,218.1]
[1740715420951,84.62284075,127.64,127.51,7.98446157]
[1740715421257,84.62284075,127.64,127.49,11.48]
[1740715421258,20.0,127.6,127.49,11.48]
[1740715421556,20.0,127.58,127.49,11.48]
[1740715421748,20.0,127.58,127.5,0.14216157]
[1740715421949,1.11220246,127.64,127.52,0.14216157]
[1740715422136,27.4165,127.66,127.54,0.14216157]
[1740715422339,20.0,127.63,127.55,11.48]
[1740715422859,7.8357,127.62,127.55,11.48]
[1740715423160,7.8339,127.65,127.56,0.14216157]
[1740715423459,84.62284075,127.71,127.58,0.14216157]
[1740715423654,84.62284075,127.71,127.6,0.14216157]
[1740715423844,0.03,127.73,127.62,0.14216157]
[1740715424046,0.03,127.73,127.64,0.14216157]
[1740715424245,0.03,127.73,127.59,0.14216157]
[1740715424443,149.3517,127.72,127.59,1.6448126]
[1740715424648,20.0,127.69,127.57,0.14216157]
[1740715424960,47.4143,127.67,127.56,132.22]
[1740715425257,27.8326,127.67,127.57,0.14216157]
[1740715425463,27.8326,127.67,127.59,0.14216157]
[1740715426138,7.8296,127.72,127.61,0.14216157]
[1740715426343,7.8296,127.72,127.62,1.64444347]
[1740715426550,20.0,127.69,127.62,0.14216157]
[1740715427059,27.8314,127.69,127.64,0.14216157]
[1740715427239,27.8314,127.69,127.62,0.14216157]
[1740715427757,27.8314,127.69,127.61,0.14216157]
[1740715427942,49.23284075,127.69,127.6,0.14216157]
[1740715428864,49.23284075,127.69,127.62,0.14216157]
[1740715428865,7.8314,127.69,127.62,0.14216157]
[1740715429039,27.4042,127.72,127.64,0.14216157]
[1740715429242,27.4042,127.72,127.62,1.6442776]
[1740715429441,27.4042,127.72,127.63,1.78674045]
[1740715429858,7.8296,127.72,127.63,138.28674045]
[1740715430540,0.03,127.73,127.63,219.88674045]
[1740715430748,0.03,127.69,127.63,219.84306157]
[1740715431152,0.03,127.69,127.63,5.75138808]
[1740715431358,0.03,127.69,127.63,7.39546418]
[1740715431564,0.03,127.69,127.62,6.0349]
[1740715431565,0.03,127.69,127.62,7.67895912]
[1740715431866,0.03,127.69,127.61,0.063]
[1740715432174,20.0,127.66,127.61,0.063]
[1740715432462,104.60410963,127.65,127.58,11.65805644]
[1740715432667,82.8,127.64,127.53,11.65805644]
[1740715432842,82.8,127.64,127.54,1.64566745]
[1740715433047,7.8351,127.63,127.54,1.64566745]
[1740715433241,1.80410963,127.62,127.53,148.15805644]
[1740715433546,27.4229,127.63,127.54,0.14216157]
[1740715433768,7.8351,127.63,127.55,1.64551914]
[1740715433969,7.8351,127.63,127.53,148.15805644]
[1740715433970,20.0,127.6,127.53,11.65805644]
[1740715434666,104.60410963,127.59,127.53,11.65805644]
[1740715435176,7.8382,127.58,127.51,0.14216157]
[1740715435365,7.8382,127.58,127.5,6.2858]
[1740715435572,7.8382,127.58,127.5,7.93185573]
[1740715435742,27.4337,127.58,127.5,6.2858]
[1740715437352,27.4337,127.58,127.49,136.5]
[1740715437771,20.0,127.55,127.48,0.063]
[1740715437949,20.0,127.55,127.48,0.20516157]
[1740715438273,1.81347519,127.57,127.48,0.20516157]
[1740715439249,1.81347519,127.57,127.48,0.063]
[1740715439449,7.8394,127.56,127.49,0.14216157]
[1740715439870,7.8394,127.56,127.48,1.70958864]
[1740715440254,9.65287519,127.56,127.48,0.063]
[1740715440466,1.81347519,127.55,127.48,0.063]
[1740715440781,7.8394,127.56,127.48,0.20516157]
[1740715440982,7.8382,127.58,127.49,1.64627995]
[1740715441168,7.8382,127.58,127.5,0.14216157]
[1740715441367,7.8363,127.61,127.52,20.14216157]
[1740715441677,1.81347519,127.66,127.54,0.14216157]
[1740715441980,1.81347519,127.65,127.55,0.14216157]
[1740715442158,1.81347519,127.66,127.48,148.043]
[1740715442360,20.0,127.62,127.48,11.543]
[1740715442563,20.0,127.58,127.48,11.543]
[1740715442776,113.65063021,127.67,127.48,11.543]
[1740715442777,1.81347519,127.57,127.48,0.063]
[1740715442972,11.5,127.64,127.51,20.0]
[1740715443184,1.81347519,127.63,127.52,0.14216157]
[1740715443477,27.4251,127.62,127.5,11.5]
[1740715443780,1.81347519,127.61,127.51,0.14216157]
[1740715443951,84.61347519,127.61,127.51,0.14216157]
[1740715444157,82.8,127.61,127.51,1.78821915]
[1740715444380,82.8,127.7,127.55,20.14216157]
[1740715444558,1.81347519,127.67,127.57,0.14216157]
[1740715444757,82.8,127.66,127.52,268.68]
[1740715445076,20.0,127.62,127.52,132.18]
[1740715445259,84.61347519,127.64,127.52,132.18]
[1740715445460,84.61347519,127.67,127.53,9.62910188]
[1740715445666,92.44627519,127.67,127.53,165.73230188]
[1740715445867,112.02797519,127.67,127.53,144.48336157]
[1740715446088,20.0,127.63,127.52,132.18]
[1740715446291,19.0,127.61,127.52,132.18]
[1740715446601,1.81347519,127.62,127.52,140.0218]
[1740715446779,82.8,127.65,127.56,0.14216157]
[1740715447096,9.4081,127.68,127.57,0.14216157]
[1740715447304,1.5759,127.68,127.57,1.78726115]
[1740715447482,7.832,127.68,127.57,9.62586115]
[1740715447674,1.81347519,127.67,127.57,1.78726115]
[1740715448689,7.8615,127.69,127.61,0.14216157]
[1740715448879,0.03,127.69,127.61,0.14216157]
[1740715449084,0.03,127.69,127.63,0.14216157]
[1740715449598,0.03,127.69,127.66,20.0]
[1740715449785,0.03,127.69,127.68,20.14216157]
[1740715450095,0.03,127.69,127.68,0.14216157]
[1740715450298,0.03,127.69,127.68,20.14216157]
[1740715450504,0.03,127.69,127.68,0.14216157]
[1740715450795,0.03,127.73,127.72,0.14216157]
[1740715450994,0.03,127.73,127.72,138.28524031]
[1740715451588,0.03,127.82,127.76,20.14216157]
[1740715452105,0.03,127.82,127.8,0.14216157]
[1740715452282,0.03,127.82,127.81,20.14216157]
[1740715452680,0.03,127.82,127.73,144.329]
[1740715452977,0.03,127.82,127.7,136.5]
[1740715453185,0.03,127.82,127.69,142.7137]
[1740715453479,1.84347519,127.82,127.67,1.6061]
[1740715453686,27.3843,127.81,127.67,138.1061]
[1740715453876,20.0,127.77,127.65,132.08]
[1740715454078,38.9443,127.81,127.61,1.64449229]
[1740715454079,20.0,127.73,127.61,1.64449229]
[1740715454267,84.61347519,127.72,127.6,11.56]
[1740715454470,82.8,127.71,127.55,148.15805644]
[1740715454674,84.61347519,127.7,127.55,148.15805644]
[1740715454894,84.61347519,127.7,127.55,11.65805644]
[1740715455197,84.61347519,127.7,127.58,20.0]
[1740715455401,84.61347519,127.7,127.55,149.80342283]
[1740715455702,110.35216157,127.69,127.55,11.65805644]
[1740715455997,20.0,127.66,127.51,132.08]
[1740715456198,1.81347519,127.65,127.51,133.72588709]
[1740715456390,0.14216157,127.64,127.51,132.08]
[1740715456592,1.81347519,127.63,127.49,0.063]
[1740715456894,1.81347519,127.63,127.49,7.9067]
[1740715457083,82.8,127.64,127.5,1.64596724]
[1740715457293,0.81347519,127.65,127.53,20.0]
[1740715457493,0.81347519,127.68,127.58,0.14216157]
[1740715457696,0.81347519,127.7,127.58,1.78717084]
[1740715457896,0.81347519,127.7,127.58,20.14216157]
[1740715458594,82.94216157,127.69,127.49,148.303]
[1740715458800,0.14216157,127.65,127.5,0.04596747]
[1740715458973,0.14216157,127.63,127.52,20.0]
[1740715459173,1.69806157,127.61,127.49,0.063]
[1740715459386,0.14216157,127.59,127.49,0.063]
[1740715459581,8.65197519,127.58,127.49,0.063]
[1740715459779,0.14216157,127.56,127.49,0.063]
[1740715459985,7.30867519,127.55,127.49,0.063]
[1740715460909,91.66457519,127.61,127.49,0.063]
[1740715461078,8.86457519,127.61,127.49,0.20516157]
[1740715461278,0.81347519,127.62,127.51,0.14216157]
[1740715461476,0.81347519,127.62,127.51,20.14216157]
[1740715461674,8.64737519,127.65,127.52,0.14216157]
[1740715461987,0.14216157,127.63,127.52,20.0]
[1740715462184,0.81347519,127.62,127.52,20.0]
[1740715462387,0.81347519,127.64,127.54,0.14216157]
[1740715462702,14.3285,127.66,127.49,136.563]
[1740715462703,0.81347519,127.65,127.49,136.563]
[1740715462914,1.11220246,127.63,127.49,0.063]
[1740715463209,0.14216157,127.56,127.49,0.063]
[1740715463508,0.14216157,127.54,127.49,0.063]
[1740715463801,0.81347519,127.53,127.49,0.063]
[1740715464177,0.14216157,127.52,127.48,0.063]
[1740715464401,0.81347519,127.51,127.48,0.063]
[1740715464727,6.1384,127.5,127.45,0.0001]
[1740715464916,0.14216157,127.47,127.31,11.65805644]
[1740715465200,0.14216157,127.45,127.31,11.65805644]
[1740715465404,1.77226157,127.43,127.31,11.65805644]
[1740715465612,0.14216157,127.41,127.34,20.0]
[1740715465776,0.14216157,127.39,127.31,11.65805644]
[1740715465986,0.81347519,127.38,127.31,11.65805644]
[1740715466183,0.81347519,127.39,127.31,11.65805644]
[1740715466508,0.81347519,127.42,127.31,148.15805644]
[1740715466698,0.81347519,127.42,127.31,11.65805644]
[1740715466902,20.0,127.36,127.2,3.95275504]
[1740715467081,0.81347519,127.35,127.21,1.64935183]
[1740715467288,0.14216157,127.34,127.2,0.03]
[1740715467583,0.81347519,127.33,127.2,0.03]
[1740715467909,7.8542,127.32,127.2,0.03]
[1740715468116,0.81347519,127.31,127.2,0.03]
[1740715468626,0.81347519,127.33,127.23,20.0]
[1740715468911,0.81347519,127.34,127.25,0.14216157]
[1740715469212,0.81347519,127.35,127.21,1.64944973]
[1740715469510,0.14216157,127.34,127.2,0.03]
[1740715469691,0.81347519,127.33,127.2,0.03]
[1740715469886,0.81347519,127.35,127.2,0.03]
[1740715470102,0.81347519,127.35,127.23,20.0]
[1740715470411,0.81347519,127.36,127.24,1.79185305]
[1740715470583,0.81347519,127.36,127.26,20.0]
[1740715470789,0.81347519,127.36,127.25,136.5]
[1740715471093,20.0,127.35,127.2,0.03]
[1740715471406,1.92567765,127.34,127.2,0.03]
[1740715471609,0.81347519,127.34,127.2,218.13]
[1740715471900,0.81347519,127.36,127.24,20.14216157]
[1740715472108,0.81347519,127.36,127.23,136.5]
[1740715472496,0.81347519,127.36,127.26,20.0]
[1740715472692,0.81347519,127.36,127.29,20.0]
[1740715472896,0.81347519,127.35,127.27,136.5]
[1740715473200,0.81347519,127.36,127.28,0.14216157]
[1740715473407,0.81347519,127.36,127.28,20.0]
[1740715473606,0.81347519,127.36,127.28,156.5]
[1740715473803,0.81347519,127.36,127.24,218.1]
[1740715474512,102.8,127.35,127.2,136.53]
[1740715474692,0.95563676,127.34,127.2,136.53]
[1740715474887,0.14216157,127.32,127.2,0.03]
[1740715475093,0.81347519,127.31,127.2,0.03]
[1740715475307,0.81347519,127.31,127.23,20.0]
[1740715475514,0.81347519,127.35,127.24,0.14216157]
[1740715476009,1.6411,127.37,127.28,0.14216157]
[1740715476220,0.81347519,127.38,127.28,136.64216157]
[1740715476398,1.5592,127.43,127.31,20.0]
[1740715476606,20.0,127.4,127.27,136.5]
[1740715476802,0.81347519,127.39,127.27,136.5]
[1740715477112,0.95563676,127.42,127.26,136.5]
[1740715477411,0.95563676,127.42,127.16,6.5049]
[1740715477412,1.5592,127.33,127.2,136.53]
[1740715477589,0.81347519,127.32,127.2,136.53]
[1740715477792,0.81347519,127.32,127.2,144.3916]
[1740715478005,0.81347519,127.32,127.21,1.79235287]
[1740715478321,0.81347519,127.36,127.24,20.14216157]
[1740715478490,0.81347519,127.36,127.24,156.5]
[1740715478918,8.66517519,127.36,127.21,136.5]
[1740715479120,20.0,127.33,127.2,0.03]
[1740715479416,0.81347519,127.32,127.23,0.03]
[1740715479735,20.0,127.25,127.23,0.03]
[1740715479912,5.23377519,127.24,127.1,0.03]
[1740715480599,5.23377519,127.24,127.1,156.53]
[1740715480789,4.4203,127.24,127.1,136.53]
[1740715480988,4.4203,127.24,127.1,218.13]
[1740715481222,4.4203,127.24,127.1,136.53]
[1740715481588,82.8,127.23,127.1,0.03]
[1740715482010,12.2794,127.24,127.1,218.13]
[1740715482213,20.0,127.21,127.1,218.13]
[1740715482509,20.0,127.2,127.1,0.03]
[1740715482692,20.0,127.17,127.1,0.03]
[1740715483100,20.0,127.13,127.1,0.03]
[1740715483314,20.0,127.09,127.01,39.35697289]
[1740715483487,1.0022,127.11,127.0,185.7]
[1740715483685,1.0022,127.11,127.0,104.1]
[1740715484000,20.0,127.07,127.0,104.1]
[1740715484204,20.0,127.06,127.0,104.1]
[1740715484713,0.14216157,127.09,127.0,104.1]
[1740715484897,0.14216157,127.07,127.0,104.1]
[1740715485097,27.5375,127.1,127.0,104.1]
[1740715485323,27.5375,127.1,127.0,95.7668]
[1740715485324,20.0,127.07,127.0,95.7668]
[1740715485514,20.0,127.07,126.86,331.83966942]
[1740715485815,20.0,126.93,126.86,113.73966942]
[1740715486013,1.5352,126.95,126.79,0.09968556]
[1740715486313,84.22817789,126.94,126.79,0.09968556]
[1740715486497,1.42285414,126.93,126.79,0.09968556]
[1740715486697,1.4175835,126.93,126.79,0.09968556]
[1740715486898,1.5352,126.95,126.79,0.09968556]
[1740715487098,10.0,127.0,126.79,144.48658556]
[1740715487402,10.0,127.0,126.8,132.56]
[1740715487607,10.0,127.0,126.83,20.0]
[1740715487806,10.0,127.0,126.83,156.5]
[1740715487993,10.0,127.0,126.83,164.3844]
[1740715488194,10.0,127.0,126.83,156.5]
[1740715488597,17.8744,127.0,126.83,136.5]
[1740715488814,37.5594,127.0,126.79,0.09968556]
[1740715489014,17.8744,127.0,126.79,144.48638556]
[1740715489216,10.0,127.0,126.82,20.0]
[1740715489396,17.8743,127.0,126.82,156.5]
[1740715489595,20.0,126.97,126.82,136.5]
[1740715489812,37.5593,127.0,126.79,136.59968556]
[1740715490116,10.0,127.0,126.81,1.6519]
[1740715490292,10.0,127.0,126.85,6.483]
[1740715490492,10.0,127.0,126.86,134.10140897]
[1740715490689,1.5641,127.17,126.95,20.0]
[1740715490916,1.5641,127.17,126.97,6.5634]
[1740715491125,9.4278,127.17,127.0,20.0]
[1740715491337,82.8,127.16,126.9,6.5634]
[1740715491525,20.0,127.13,126.9,6.5634]
[1740715491709,134.10817789,127.12,126.9,6.5634]
[1740715491905,0.063,127.0,126.93,20.0]
[1740715492134,0.063,127.0,126.94,20.0]
[1740715492436,0.063,127.0,126.83,14.0738]
[1740715492934,0.063,127.0,126.83,142.6897]
[1740715493231,0.063,127.0,126.83,14.0742]
[1740715493430,0.063,127.0,126.83,142.6897]
[1740715493817,0.063,127.0,126.8,136.53]
[1740715494237,0.063,127.0,126.8,144.416]
[1740715494543,20.0,126.97,126.8,0.03]
[1740715495327,133.1010789,127.0,126.69,6.26424864]
[1740715495328,20.0,126.87,126.69,6.26424864]
[1740715495516,20.0,126.83,126.69,6.26424864]
[1740715495727,20.0,126.83,126.6,7.8983]
[1740715495728,3.3581,126.82,126.6,144.3983]
[1740715495918,82.8,126.81,126.57,224.2166]
[1740715496117,82.8,126.81,126.58,27.6495]
[1740715496317,3.3581,126.82,126.6,3.96630084]
[1740715496549,3.3581,126.82,126.6,85.56630084]
[1740715496837,3.3581,126.82,126.58,203.6502]
[1740715496838,11.2433,126.82,126.58,27.6495]
[1740715497014,0.14216157,126.81,126.58,27.6495]
[1740715497225,82.94216157,126.81,126.58,144.4001]
[1740715497448,82.8,126.81,126.58,538.0001]
[1740715497740,3.3581,126.82,126.58,538.0001]
[1740715497741,3.3581,126.82,126.59,1.44448331]
[1740715498038,7.8864,126.8,126.58,89.5001]
[1740715498235,1.42817789,126.8,126.61,20.0]
[1740715498535,11.2434,126.82,126.6,3.9503581]
[1740715498739,11.2434,126.82,126.54,0.21324235]
[1740715498740,30.9563,126.82,126.53,27.6605]
[1740715498922,84.23355527,126.81,126.53,7.9032]
[1740715499111,82.8,126.8,126.53,164.1613]
[1740715499311,1.43355527,126.81,126.54,132.34]
[1740715499540,1.43355527,126.81,126.59,3.86597922]
[1740715499723,1.43355527,126.81,126.61,0.14216157]
[1740715499929,14.2924,126.88,126.61,0.14216157]
[1740715500122,14.2924,126.88,126.63,0.14216157]
[1740715500123,7.8825,126.87,126.63,0.14216157]
[1740715500321,6.4107,126.88,126.67,0.14216157]
[1740715500725,1.5821,126.9,126.67,448.64216157]
[1740715500726,0.14216157,126.89,126.67,448.64216157]
[1740715501023,6.4107,126.94,126.72,0.14216157]
[1740715501236,1.5821,126.98,126.76,0.14216157]
[1740715501544,6.1702,127.01,126.8,0.14216157]
[1740715501745,6.1702,127.01,126.84,0.14216157]
[1740715502043,140.7715,127.05,126.88,0.14216157]
[1740715502246,140.771,127.05,126.88,0.14216157]
[1740715502546,145.25566887,127.05,126.85,0.14216157]
[1740715502849,140.771,127.05,126.85,0.14216157]
[1740715503033,7.8702,127.07,126.86,0.14216157]
[1740715503228,7.871,127.05,126.86,136.5]
[1740715503419,7.8688,127.09,126.87,0.14216157]
[1740715503618,82.8,127.09,126.87,136.5]
[1740715503940,82.8,127.09,126.88,0.14216157]
[1740715504117,6.5569,127.1,126.92,20.14216157]
[1740715504320,132.9,127.13,126.92,156.64216157]
[1740715504547,132.9,127.13,126.92,20.14216157]
[1740715505122,132.9,127.13,126.9,0.14216157]
[1740715505318,7.868,127.1,126.89,7.8808]
[1740715505523,0.14216157,127.09,126.89,7.8808]
[1740715505726,82.8,127.12,126.89,7.8808]
[1740715505727,90.6668,127.12,126.89,7.8808]
[1740715505922,7.8672,127.11,126.9,0.14216157]
[1740715506144,132.963,127.13,126.92,0.14216157]
[1740715506337,90.6665,127.12,126.84,7.8839]
[1740715506540,0.14216157,127.08,126.84,7.8839]
[1740715506745,0.14216157,127.08,126.84,144.3839]
[1740715506943,20.0,127.09,126.84,27.5937]
[1740715507126,20.0,127.09,126.85,0.14216157]
[1740715507326,82.8,127.12,126.87,20.0]
[1740715507534,132.963,127.13,126.87,20.0]
[1740715507743,132.963,127.13,126.84,27.5937]
[1740715507951,20.14216157,127.09,126.84,27.5937]
[1740715508147,132.963,127.13,126.84,67.0134]
[1740715508358,132.963,127.13,126.84,106.4331]
[1740715508648,132.963,127.13,126.88,0.14216157]
[1740715508848,132.963,127.13,126.92,0.14216157]
[1740715509026,0.063,127.13,126.96,1.73916157]
[1740715509228,0.063,127.13,126.97,6.134]
[1740715509447,0.063,127.13,126.98,0.14216157]
[1740715510152,0.063,127.13,126.97,6.134]
[1740715510646,0.063,127.13,126.92,7.8789]
[1740715510852,0.14216157,127.08,126.9,6.1974]
[1740715511030,0.14216157,127.09,126.9,6.1974]
[1740715511224,6.0818,127.1,126.9,142.6974]
[1740715511423,0.14216157,127.09,126.9,142.6974]
[1740715511842,20.0,127.05,126.84,136.5]
[1740715512049,0.14216157,127.04,126.8,7.8864]
[1740715512242,0.14216157,127.02,126.8,7.8864]
[1740715512425,20.0,127.0,126.8,7.8864]
[1740715512630,0.14216157,127.0,126.79,9.5515]
[1740715512850,132.82,127.01,126.79,9.5515]
[1740715513037,132.82,127.01,126.79,247.3691]
[1740715513238,20.0,126.98,126.79,146.0515]
[1740715513553,0.14216157,126.97,126.76,142.6974]
[1740715513754,20.0,126.92,126.74,136.5]
[1740715513931,0.14216157,126.91,126.71,1.6645]
[1740715514131,20.0,126.92,126.71,185.7864]
[1740715514345,6.0818,126.95,126.71,49.2864]
[1740715514539,20.0,126.92,126.71,165.7864]
[1740715515054,132.82,127.01,126.75,0.14216157]
[1740715515254,0.14216157,127.0,126.79,0.14216157]
[1740715515431,0.14216157,127.0,126.79,136.5]
[1740715515748,20.14216157,126.98,126.79,136.5]
[1740715515954,1.57571684,126.98,126.77,20.0]
[1740715516162,132.82,127.01,126.81,8.02796157]
[1740715516338,132.82,127.01,126.85,0.14216157]
[1740715516538,1.5248,127.08,126.88,20.0]
[1740715516754,1.5248,127.08,126.89,0.14216157]
[1740715517152,132.86,127.09,126.89,0.14216157]
[1740715517346,0.063,127.0,126.93,0.14216157]
[1740715517662,0.063,127.0,126.93,136.64216157]
[1740715517864,0.063,127.0,126.97,0.14216157]
[1740715518064,0.063,127.0,126.97,136.64216157]
[1740715518373,0.063,127.0,126.99,0.14216157]
[1740715518543,0.063,127.0,126.99,136.64216157]
[1740715519139,0.063,127.0,126.97,20.0]
[1740715519343,0.063,127.0,126.95,136.64216157]
[1740715519966,0.063,127.0,126.95,136.5]
[1740715520168,0.063,127.0,126.89,136.5]
[1740715520540,0.063,127.0,126.9,0.14216157]
[1740715520740,0.063,127.0,126.94,0.14216157]
[1740715520948,0.063,127.0,126.98,0.14216157]
[1740715521770,0.063,127.13,127.02,0.14216157]
[1740715522065,0.063,127.13,127.06,0.14216157]
[1740715522247,0.063,127.13,127.06,136.64216157]
[1740715522452,0.063,127.13,126.99,0.14216157]
[1740715522662,0.063,127.13,127.02,20.14216157]
[1740715522963,0.063,127.13,127.04,0.14216157]
[1740715523272,22.78325175,127.29,127.08,0.14216157]
[1740715523566,30.63935175,127.29,127.12,0.14216157]
[1740715523740,22.78325175,127.29,127.16,0.14216157]
[1740715523946,22.78325175,127.29,127.2,0.14216157]
[1740715524165,22.78325175,127.29,127.23,20.0]
[1740715524467,22.78325175,127.29,127.24,0.14216157]
[1740715524784,22.78325175,127.29,127.23,156.5]
[1740715524785,22.78325175,127.29,127.23,136.5]
[1740715524971,22.78325175,127.29,127.15,142.8782]
[1740715525260,22.78325175,127.29,127.16,0.14216157]
[1740715525461,20.0,127.27,127.16,0.14216157]
[1740715525664,20.0,127.27,127.09,269.32]
[1740715525850,20.0,127.26,127.09,269.32]
[1740715526166,0.14216157,127.25,127.03,138.1375]
[1740715526361,8.00066157,127.25,127.06,20.0]
[1740715526564,20.0,127.22,127.06,136.5]
[1740715526866,0.14216157,127.21,127.06,136.5]
[1740715527073,0.14216157,127.21,127.02,4.04174681]
[1740715527261,0.14216157,127.19,127.02,4.04174681]
[1740715527468,1.57571684,127.19,127.02,4.04174681]
[1740715527664,0.14216157,127.17,126.92,132.74]
[1740715527968,66.7975,127.25,126.92,136.5]
[1740715527969,0.14216157,127.12,126.92,136.5]
[1740715528178,134.29033946,127.12,126.92,136.5]
[1740715528347,7.8672,127.11,126.92,136.5]
[1740715528556,0.14216157,127.07,126.87,136.5]
[1740715528757,0.14216157,127.07,126.84,132.72]
[1740715529069,1.6198,127.1,126.84,269.22]
[1740715529270,7.8653,127.14,126.87,20.0]
[1740715529471,0.14216157,127.15,126.88,1.44118176]
[1740715529645,20.0,127.13,126.88,1.44118176]
[1740715529846,6.2369,127.16,126.95,4.01332591]
[1740715530157,1.6198,127.19,127.0,0.14216157]
[1740715530469,132.72,127.2,127.04,20.14216157]
[1740715530470,140.5819,127.2,127.04,20.14216157]
[1740715530782,0.14216157,127.16,127.03,136.5]
[1740715530976,0.14216157,127.16,126.96,269.22]
[1740715531276,1.57571684,127.16,126.96,132.72]
[1740715531474,1.57571684,127.16,126.99,20.0]
[1740715531656,0.14216157,127.19,126.99,156.5]
[1740715531855,0.14216157,127.16,126.96,136.5]
[1740715532059,0.14216157,127.14,126.91,144.3792]
[1740715532466,0.14216157,127.12,126.91,136.5]
[1740715532983,0.14216157,127.1,126.89,136.5]
[1740715533148,8.0925,127.11,126.89,136.5]
[1740715533351,8.0925,127.11,126.93,0.14216157]
[1740715533565,7.8656,127.14,126.97,0.14216157]
[1740715533766,27.5179,127.19,126.97,136.64216157]
[1740715534269,20.0,127.16,126.97,136.64216157]
[1740715534482,1.43355527,127.18,126.97,144.51756157]
[1740715534790,139.2603,127.2,126.97,144.51756157]
[1740715534791,147.122,127.2,127.01,0.14216157]
[1740715534978,20.0,127.17,127.01,136.64216157]
[1740715535275,0.14216157,127.16,126.98,0.14216157]
[1740715535452,0.14216157,127.16,126.97,136.5]
[1740715535657,0.14216157,127.16,126.93,136.5]
[1740715535965,0.14216157,127.16,126.97,0.14216157]
[1740715536170,0.14216157,127.16,126.97,136.64216157]
[1740715536558,7.70686157,127.15,126.97,136.5]
[1740715537085,7.70686157,127.15,126.92,144.3784]
[1740715537086,20.0,127.12,126.92,144.3784]
[1740715537293,20.0,127.12,126.91,136.5]
[1740715537458,1.42817789,127.11,126.88,132.76]
[1740715537788,21.42817789,127.11,126.81,157.7631]
[1740715537970,8.2426,127.1,126.81,144.3855]
[1740715538296,20.0,127.06,126.81,144.3856]
[1740715538468,1.42285414,127.05,126.81,144.3856]
[1740715538670,0.14216157,127.03,126.81,144.3856]
[1740715538871,0.14216157,127.0,126.79,269.26]
[1740715539063,13.91778532,127.01,126.82,20.0]
[1740715539270,15.33536882,127.01,126.82,136.5]
[1740715539466,6.4087,127.0,126.82,136.5]
[1740715539819,6.4087,127.0,126.76,0.03]
[1740715539820,2.94985527,126.99,126.76,0.03]
[1740715539997,217.03355527,126.98,126.76,0.03]
[1740715540298,84.23355527,126.97,126.77,39.49298432]
[1740715540482,84.23355527,126.96,126.77,39.58240986]
[1740715540663,151.18885527,126.95,126.76,0.03]
[1740715540870,84.23355527,126.94,126.76,0.03]
[1740715541091,20.0,126.9,126.76,0.03]
[1740715541266,1.57033946,126.89,126.76,0.03]
[1740715541471,0.14216157,126.87,126.76,0.03]
[1740715541667,1.42817789,126.88,126.76,0.03]